bitfinex/quotes_BTCUSD_20241002
["timestamp","ask_amount","ask_price","bid_price","bid_amount"]
[1727879020050,0.25822637,61459.0,61458.0,0.00082]
[1727879020563,0.18822637,61459.0,61458.0,0.00082]
[1727879021037,0.02551637,61459.0,61458.0,0.163532]
[1727879021293,0.02551637,61459.0,61458.0,0.00082]
[1727879021646,0.18822637,61459.0,61458.0,0.00082]
[1727879022527,0.28822637,61459.0,61458.0,0.00082]
[1727879023270,0.26271,61459.0,61458.0,0.00082]
[1727879023529,0.00164,61465.0,61458.0,0.00082]
[1727879023757,0.162707,61460.0,61458.0,0.00082]
[1727879023985,0.16271,61459.0,61458.0,0.00082]
[1727879025122,0.6971995,61459.0,61458.0,0.00082]
[1727879026378,0.26271,61459.0,61458.0,0.00082]
[1727879026594,0.28822678,61459.0,61458.0,0.00082]
[1727879027819,0.43943841,61459.0,61458.0,0.00082]
[1727879028019,0.46243841,61459.0,61458.0,0.00082]
[1727879028884,0.31122678,61459.0,61458.0,0.00082]
[1727879030850,0.285712,61458.0,61457.0,0.13056317]
[1727879031278,0.35,61454.0,61451.0,0.15525]
[1727879031485,0.6972175,61452.0,61451.0,0.15525]
[1727879031704,0.7202175,61452.0,61451.0,0.15525]
[1727879031956,0.8004175,61452.0,61451.0,0.15525]
[1727879032174,0.82593991,61452.0,61451.0,0.15525]
[1727879032397,0.74573991,61452.0,61451.0,0.15525]
[1727879033135,0.7202175,61452.0,61451.0,0.15525]
[1727879034328,1.42498051,61452.0,61451.0,0.15525]
[1727879034732,2.09316722,61452.0,61451.0,0.122704]
[1727879034935,0.512747,61445.0,61441.0,0.0002]
[1727879035146,1.19419439,61445.0,61444.0,0.13979374]
[1727879035347,1.81672321,61445.0,61444.0,0.13979374]
[1727879036198,1.217047,61445.0,61444.0,0.13979374]
[1727879037307,1.22175043,61445.0,61444.0,0.13979374]
[1727879039054,1.34344564,61445.0,61444.0,0.13979374]
[1727879039273,1.22175043,61445.0,61444.0,0.13979374]
[1727879039511,1.60378486,61445.0,61444.0,0.13979374]
[1727879039739,1.42517784,61445.0,61444.0,0.13979374]
[1727879039952,1.58836455,61445.0,61444.0,0.13979374]
[1727879040389,0.90217784,61445.0,61444.0,0.13979374]
[1727879040870,0.80217784,61445.0,61444.0,0.14061374]
[1727879041522,0.89815784,61445.0,61444.0,0.14061374]
[1727879041739,0.162755,61442.0,61441.0,0.0002]
[1727879041962,0.23438921,61442.0,61441.0,0.0002]
[1727879042174,0.33438921,61442.0,61441.0,0.0002]
[1727879042396,0.285755,61442.0,61441.0,0.0002]
[1727879043309,0.61909337,61442.0,61441.0,0.0002]
[1727879043529,0.61909337,61442.0,61430.0,0.16302273]
[1727879043530,0.262784,61431.0,61430.0,0.16302273]
[1727879043743,0.54751141,61431.0,61430.0,0.16302273]
[1727879045267,0.262784,61431.0,61430.0,0.16302273]
[1727879045945,0.54751141,61431.0,61430.0,0.16302273]
[1727879046594,0.54751141,61431.0,61417.0,0.35360455]
[1727879046595,0.162802,61424.0,61417.0,0.16820455]
[1727879046812,0.162802,61424.0,61418.0,0.24279506]
[1727879046813,0.57052941,61424.0,61418.0,0.24279506]
[1727879047469,0.57052941,61424.0,61417.0,0.16820455]
[1727879047900,0.57521237,61424.0,61417.0,0.16820455]
[1727879048121,0.285808,61422.0,61417.0,0.16820455]
[1727879048370,0.262837,61411.0,61410.0,0.17079545]
[1727879048579,0.54756441,61411.0,61410.0,0.17079545]
[1727879048805,0.1,61411.0,61410.0,0.17079545]
[1727879049437,0.1,61416.0,61410.0,0.17079545]
[1727879049704,0.00473063,61420.0,61410.0,0.17079545]
[1727879049705,0.1,61420.0,61410.0,0.17079545]
[1727879049927,0.02553435,61415.0,61411.0,0.0815]
[1727879050354,0.02553435,61415.0,61414.0,0.162829]
[1727879050556,0.02553435,61415.0,61412.0,0.162833]
[1727879050770,0.02553435,61415.0,61411.0,0.0815]
[1727879051025,0.02553435,61415.0,61410.0,0.17079545]
[1727879051869,0.12553435,61415.0,61410.0,0.17079545]
[1727879052081,0.162837,61411.0,61410.0,0.17079545]
[1727879052369,0.262837,61411.0,61410.0,0.17079545]
[1727879053097,0.285837,61411.0,61410.0,0.17079545]
[1727879053803,0.44106696,61411.0,61410.0,0.17079545]
[1727879054047,0.44106696,61411.0,61410.0,0.17161545]
[1727879054288,0.83655791,61411.0,61410.0,0.17161545]
[1727879054776,0.79106696,61411.0,61410.0,0.17161545]
[1727879055026,0.83655791,61411.0,61410.0,0.17161545]
[1727879055772,0.86946696,61411.0,61410.0,0.14195144]
[1727879056008,0.91495791,61411.0,61410.0,0.02107091]
[1727879056277,0.635855,61404.0,61403.0,0.17338636]
[1727879056492,0.96607336,61404.0,61403.0,0.17338636]
[1727879056717,0.285855,61404.0,61403.0,0.17338636]
[1727879056937,0.262855,61404.0,61403.0,0.17338636]
[1727879057155,0.1,61406.0,61403.0,0.17338636]
[1727879057415,0.162855,61404.0,61403.0,0.17338636]
[1727879057633,0.262855,61404.0,61403.0,0.17338636]
[1727879058290,0.6035955,61404.0,61403.0,0.17338636]
[1727879058726,0.262855,61404.0,61403.0,0.17338636]
[1727879058946,0.1807,61404.0,61362.0,0.18893182]
[1727879059170,0.977143,61375.0,61304.0,0.0001]
[1727879059393,0.19607,61323.0,61304.0,0.0001]
[1727879059613,0.005,61326.0,61305.0,0.28472741]
[1727879059846,0.1,61344.0,61305.0,0.28472741]
[1727879059847,0.005,61324.0,61323.0,0.24247]
[1727879060084,0.005,61325.0,61323.0,0.0794]
[1727879060307,0.01,61324.0,61323.0,0.0794]
[1727879060540,0.015,61324.0,61323.0,0.0794]
[1727879060762,0.015,61323.0,61322.0,0.0161113]
[1727879060991,0.015,61323.0,61322.0,0.05985727]
[1727879061235,0.015,61323.0,61322.0,0.0161113]
[1727879061673,0.04056745,61323.0,61322.0,0.0161113]
[1727879063041,0.015,61323.0,61322.0,0.0161113]
[1727879064157,0.1,61338.0,61322.0,0.0161113]
[1727879064158,0.01,61328.0,61322.0,0.26071972]
[1727879064389,0.01,61323.0,61322.0,0.0161113]
[1727879064626,0.24460842,61360.0,61323.0,0.1942]
[1727879064844,0.24460842,61360.0,61324.0,0.0794]
[1727879064845,0.24460842,61330.0,61324.0,0.0794]
[1727879065084,0.24460842,61345.0,61325.0,0.24460842]
[1727879065085,0.163029,61339.0,61325.0,0.24460842]
[1727879065318,0.4362151,61346.0,61325.0,0.24460842]
[1727879065319,0.163032,61338.0,61325.0,0.24460842]
[1727879065535,0.4362151,61346.0,61325.0,0.24460842]
[1727879065536,0.326053,61340.0,61326.0,0.01091591]
[1727879065754,0.10882481,61345.0,61326.0,0.01091591]
[1727879065971,0.02556562,61337.0,61326.0,0.01091591]
[1727879066179,0.02556562,61337.0,61334.0,0.24460842]
[1727879066437,0.02556562,61337.0,61333.0,0.163043]
[1727879066653,0.02556562,61337.0,61335.0,0.01081351]
[1727879066876,0.02556562,61337.0,61336.0,0.163036]
[1727879067095,0.325956,61358.0,61342.0,0.163019]
[1727879067319,0.24460842,61353.0,61336.0,0.20820213]
[1727879067576,0.162981,61357.0,61344.0,0.163014]
[1727879067807,0.325951,61359.0,61345.0,0.163011]
[1727879068048,0.24460842,61367.0,61345.0,0.01105582]
[1727879068296,0.162976,61359.0,61348.0,0.24460842]
[1727879068545,0.162999,61350.0,61349.0,0.01100848]
[1727879068790,0.163017,61343.0,61342.0,0.24460842]
[1727879069082,0.263017,61343.0,61342.0,0.24460842]
[1727879069562,0.163032,61338.0,61332.0,0.24460842]
[1727879069781,0.1,61339.0,61332.0,0.24460842]
[1727879070003,0.1,61338.0,61333.0,0.01130698]
[1727879070730,0.1,61338.0,61331.0,0.03255]
[1727879070942,0.1,61338.0,61332.0,0.24460842]
[1727879071177,0.163024,61341.0,61332.0,0.24460842]
[1727879071448,0.02556487,61337.0,61332.0,0.24460842]
[1727879071697,0.02556487,61337.0,61334.0,0.16304]
[1727879071959,0.02556487,61337.0,61335.0,0.163038]
[1727879072225,0.02556487,61337.0,61333.0,0.163043]
[1727879072492,0.02556487,61337.0,61330.0,0.03255]
[1727879072493,0.51466687,61337.0,61330.0,0.03255]
[1727879072777,0.35163387,61337.0,61330.0,0.03255]
[1727879073100,0.02556487,61337.0,61330.0,0.03255]
[1727879073344,0.02556487,61337.0,61331.0,0.03255]
[1727879073572,0.02556487,61337.0,61336.0,0.163036]
[1727879073793,0.02556487,61337.0,61334.0,0.03255]
[1727879074052,0.426031,61344.0,61338.0,0.326061]
[1727879074053,0.1,61344.0,61338.0,0.326061]
[1727879074259,0.1,61344.0,61340.0,0.32605]
[1727879074461,0.263016,61344.0,61338.0,0.163029]
[1727879074696,0.1,61344.0,61337.0,0.326067]
[1727879074914,0.24460842,61360.0,61342.0,0.163018]
[1727879074915,0.426002,61350.0,61342.0,0.163018]
[1727879075134,0.24460842,61360.0,61342.0,0.163018]
[1727879075135,0.325965,61357.0,61342.0,0.326036]
[1727879075537,0.24460842,61360.0,61337.0,0.03255]
[1727879075793,0.325986,61353.0,61339.0,0.24460842]
[1727879076029,0.163022,61342.0,61339.0,0.24460842]
[1727879076271,0.326008,61349.0,61339.0,0.24460842]
[1727879076272,0.163025,61341.0,61339.0,0.24460842]
[1727879076501,0.32597,61356.0,61339.0,0.24460842]
[1727879076502,0.1,61351.0,61339.0,0.24460842]
[1727879076722,0.1,61354.0,61335.0,0.03255]
[1727879076954,0.163036,61336.0,61334.0,0.24460842]
[1727879077176,0.163039,61335.0,61334.0,0.24460842]
[1727879077409,0.163053,61330.0,61327.0,0.24460842]
[1727879077638,0.163053,61330.0,61324.0,0.0794]
[1727879077639,0.1,61335.0,61328.0,0.24460842]
[1727879077907,0.163062,61326.0,61324.0,0.0794]
[1727879078132,0.16307,61323.0,61321.0,0.20467727]
[1727879078811,0.26307,61323.0,61321.0,0.20467727]
[1727879079475,0.42625671,61323.0,61321.0,0.20467727]
[1727879079692,0.31164285,61323.0,61321.0,0.20467727]
[1727879079910,0.66164285,61323.0,61321.0,0.20467727]
[1727879081062,0.002,61317.0,61307.0,0.20965909]
[1727879081293,1.0723071,61315.0,61314.0,0.18838805]
[1727879081517,1.0743071,61315.0,61314.0,0.18838805]
[1727879082004,1.09988813,61315.0,61314.0,0.18774698]
[1727879082233,1.1517834,61315.0,61314.0,0.18774698]
[1727879082450,1.26307484,61315.0,61314.0,0.18774698]
[1727879082903,0.72081,61308.0,61307.0,0.20965909]
[1727879083094,1.1570251,61308.0,61307.0,0.20965909]
[1727879083367,0.288118,61305.0,61304.0,0.0001]
[1727879083805,0.34001327,61305.0,61304.0,0.0001]
[1727879084027,0.34001327,61305.0,61297.0,0.24460842]
[1727879084028,1.2243411,61302.0,61297.0,0.24460842]
[1727879084265,1.2243411,61302.0,61300.0,0.17122365]
[1727879084266,0.638129,61301.0,61300.0,0.17122365]
[1727879084490,0.263129,61301.0,61300.0,0.17122365]
[1727879084940,0.4362151,61306.0,61300.0,0.17122365]
[1727879085626,0.163129,61301.0,61300.0,0.17122365]
[1727879085875,0.326217,61309.0,61300.0,0.17122365]
[1727879085876,0.326225,61308.0,61300.0,0.17122365]
[1727879086133,0.00424354,61317.0,61300.0,0.17122365]
[1727879086134,0.18871039,61301.0,61300.0,0.17122365]
[1727879086397,0.4362151,61306.0,61300.0,0.17122365]
[1727879086644,0.163129,61301.0,61300.0,0.17122365]
[1727879087159,0.4362151,61314.0,61300.0,0.17122365]
[1727879087410,0.1,61301.0,61300.0,0.17122365]
[1727879087627,0.263129,61301.0,61300.0,0.17122365]
[1727879089151,0.286129,61301.0,61300.0,0.17122365]
[1727879089825,0.29024767,61301.0,61300.0,0.17122365]
[1727879090064,0.29024767,61301.0,61300.0,0.0521697]
[1727879090065,0.36934767,61301.0,61300.0,0.0521697]
[1727879090287,0.638145,61295.0,61287.0,0.21743182]
[1727879090499,1.0723601,61295.0,61287.0,0.21743182]
[1727879091015,1.59994798,61295.0,61287.0,0.21743182]
[1727879091261,1.76113469,61295.0,61287.0,0.21743182]
[1727879092217,1.76313469,61295.0,61287.0,0.21743182]
[1727879092442,2.46313469,61295.0,61287.0,0.21743182]
[1727879093356,1.138164,61288.0,61287.0,0.21743182]
[1727879093585,1.138164,61288.0,61280.0,0.22084173]
[1727879093586,0.16518,61282.0,61280.0,0.22084173]
[1727879093810,0.6993951,61282.0,61280.0,0.22084173]
[1727879094525,0.5362151,61282.0,61281.0,0.24480842]
[1727879094746,0.04825113,61323.0,61281.0,0.24480842]
[1727879094747,0.163172,61285.0,61281.0,0.0002]
[1727879094966,0.24460842,61297.0,61281.0,0.24480842]
[1727879095206,0.40776742,61290.0,61281.0,0.0002]
[1727879095426,0.001644,61301.0,61282.0,0.03255]
[1727879095649,0.24460842,61297.0,61283.0,0.00326326]
[1727879095881,0.24460842,61297.0,61289.0,0.32632]
[1727879096108,0.326266,61300.0,61284.0,0.1896]
[1727879096109,0.164774,61301.0,61284.0,0.1896]
[1727879096335,0.164774,61301.0,61293.0,0.16315]
[1727879096336,0.02558361,61294.0,61293.0,0.16315]
[1727879096779,0.02558361,61294.0,61289.0,0.163158]
[1727879096995,0.02558361,61294.0,61290.0,0.163157]
[1727879097485,0.02558361,61294.0,61284.0,0.1896]
[1727879097486,0.326265,61300.0,61289.0,0.24460842]
[1727879097707,0.163139,61298.0,61290.0,0.163157]
[1727879097939,0.163146,61295.0,61288.0,0.163163]
[1727879098170,0.001644,61301.0,61288.0,0.24460842]
[1727879098171,0.326287,61296.0,61288.0,0.24460842]
[1727879098392,0.326287,61296.0,61288.0,0.40777142]
[1727879098393,0.163148,61294.0,61288.0,0.40777142]
[1727879098627,0.163169,61287.0,61284.0,0.46675842]
[1727879098849,0.163172,61285.0,61284.0,0.46675842]
[1727879099073,0.163172,61285.0,61284.0,0.22215]
[1727879099713,0.326307,61292.0,61284.0,0.22215]
[1727879099929,0.163162,61289.0,61284.0,0.22215]
[1727879100145,0.1,61295.0,61284.0,0.22215]
[1727879100146,0.163172,61285.0,61284.0,0.22215]
[1727879100364,0.326333,61287.0,61284.0,0.22215]
[1727879100576,0.326323,61289.0,61284.0,0.1896]
[1727879100788,0.163172,61285.0,61284.0,0.1896]
[1727879101051,0.0255854,61291.0,61284.0,0.1896]
[1727879101276,0.163159,61290.0,61284.0,0.1896]
[1727879101494,0.0255854,61291.0,61284.0,0.1896]
[1727879101716,0.0255854,61291.0,61288.0,0.326324]
[1727879101942,0.24460842,61308.0,61300.0,0.163132]
[1727879102165,0.40938142,61301.0,61300.0,0.1921]
[1727879102414,0.40938142,61301.0,61289.0,0.1913]
[1727879102415,0.163158,61290.0,61289.0,0.1913]
[1727879102868,0.326278,61298.0,61289.0,0.1913]
[1727879103095,0.326278,61298.0,61281.0,0.0002]
[1727879103096,0.16318,61282.0,61281.0,0.0002]
[1727879103316,0.1,61296.0,61281.0,0.0002]
[1727879103541,0.16318,61282.0,61281.0,0.0002]
[1727879103826,0.163176,61284.0,61281.0,0.0002]
[1727879104043,0.16318,61282.0,61281.0,0.0002]
[1727879104705,0.163177,61283.0,61281.0,0.0002]
[1727879104928,0.163173,61285.0,61281.0,0.0002]
[1727879105149,0.1,61298.0,61281.0,0.0002]
[1727879105150,0.326343,61286.0,61281.0,0.0002]
[1727879105374,0.326345,61285.0,61281.0,0.0002]
[1727879105600,0.16318,61282.0,61281.0,0.0002]
[1727879106264,0.32629,61295.0,61281.0,0.0002]
[1727879106488,0.163148,61294.0,61286.0,0.326335]
[1727879106705,0.1,61300.0,61291.0,0.163155]
[1727879106706,0.163147,61295.0,61291.0,0.163155]
[1727879106921,0.163147,61295.0,61288.0,0.03255]
[1727879106922,0.326292,61295.0,61288.0,0.03255]
[1727879107362,0.1,61300.0,61285.0,0.03255]
[1727879107620,0.16318,61282.0,61281.0,0.0002]
[1727879107837,0.1,61296.0,61281.0,0.0002]
[1727879108060,0.163174,61284.0,61281.0,0.0002]
[1727879108288,0.16317,61286.0,61281.0,0.03275]
[1727879108506,0.163178,61283.0,61281.0,0.0002]
[1727879108728,0.1,61296.0,61281.0,0.0002]
[1727879108978,0.326309,61292.0,61281.0,0.0002]
[1727879109203,0.5,61310.0,61281.0,0.0002]
[1727879109204,0.16318,61282.0,61281.0,0.0002]
[1727879109437,0.1,61298.0,61281.0,0.0002]
[1727879109679,0.4362151,61310.0,61285.0,0.326343]
[1727879109930,0.24660842,61315.0,61290.0,0.1911]
[1727879109931,0.02558535,61297.0,61290.0,0.1911]
[1727879110166,0.02558535,61297.0,61296.0,0.163142]
[1727879110385,0.02558535,61297.0,61296.0,0.195692]
[1727879110606,0.001644,61301.0,61300.0,0.163132]
[1727879110856,0.001644,61301.0,61300.0,0.195682]
[1727879111075,0.001644,61301.0,61285.0,0.4362151]
[1727879111296,0.326288,61296.0,61290.0,0.43570842]
[1727879111565,0.163156,61291.0,61290.0,0.1911]
[1727879112004,0.163151,61293.0,61290.0,0.1911]
[1727879112225,0.02558159,61291.0,61290.0,0.1911]
[1727879112696,0.02558159,61291.0,61290.0,0.354258]
[1727879113366,0.001644,61301.0,61300.0,0.163132]
[1727879113591,0.24460842,61315.0,61302.0,0.002]
[1727879113831,0.24460842,61315.0,61314.0,0.163094]
[1727879114093,0.24460842,61322.0,61307.0,0.326226]
[1727879114094,0.24460842,61322.0,61313.0,0.0807]
[1727879114316,0.24460842,61315.0,61304.0,0.326237]
[1727879114529,0.4382151,61333.0,61312.0,0.326199]
[1727879114530,0.4362151,61333.0,61312.0,0.326199]
[1727879114742,0.24460842,61321.0,61311.0,0.163102]
[1727879114955,0.4362151,61333.0,61314.0,0.24460842]
[1727879114956,0.163083,61319.0,61314.0,0.24460842]
[1727879115182,0.326117,61328.0,61314.0,0.24460842]
[1727879115432,0.32611,61329.0,61315.0,0.00326146]
[1727879115667,0.32611,61329.0,61309.0,0.4362151]
[1727879115668,0.326136,61324.0,61317.0,0.163085]
[1727879115881,0.163074,61322.0,61318.0,0.163084]
[1727879116091,0.163073,61322.0,61318.0,0.163084]
[1727879116301,0.16307,61324.0,61319.0,0.16308]
[1727879116511,0.326131,61325.0,61316.0,0.326177]
[1727879116512,0.326095,61332.0,61316.0,0.326177]
[1727879116727,0.163074,61322.0,61318.0,0.163083]
[1727879116947,0.326111,61329.0,61316.0,0.326177]
[1727879117165,0.163053,61330.0,61317.0,0.19666137]
[1727879117390,0.1,61334.0,61322.0,0.326145]
[1727879117647,0.001644,61338.0,61325.0,0.326129]
[1727879117648,0.02556984,61333.0,61325.0,0.326129]
[1727879117872,0.02556984,61333.0,61329.0,0.163053]
[1727879118099,0.02556984,61333.0,61327.0,0.00326087]
[1727879118336,0.02556984,61333.0,61322.0,0.03255]
[1727879118337,0.16307,61323.0,61322.0,0.03255]
[1727879118562,0.001644,61329.0,61319.0,0.163081]
[1727879118784,0.163058,61328.0,61322.0,0.57075242]
[1727879119012,0.001644,61329.0,61324.0,0.326133]
[1727879119334,0.02556874,61327.0,61326.0,0.163062]
[1727879119490,0.001644,61329.0,61327.0,0.16306]
[1727879119717,0.489197,61325.0,61322.0,0.03255]
[1727879119923,0.001644,61329.0,61322.0,0.03255]
[1727879120642,0.164699,61329.0,61325.0,0.163064]
[1727879120862,0.1647,61329.0,61324.0,0.163067]
[1727879121087,0.001644,61329.0,61323.0,0.326141]
[1727879121312,0.163063,61326.0,61322.0,0.163072]
[1727879121538,0.001644,61329.0,61320.0,0.03255]
[1727879121768,0.001644,61329.0,61314.0,0.24460842]
[1727879121984,0.163076,61321.0,61314.0,0.60334542]
[1727879122211,0.326137,61324.0,61321.0,0.24460842]
[1727879122431,0.32612,61328.0,61318.0,0.326167]
[1727879122665,0.163068,61324.0,61319.0,0.163079]
[1727879122875,0.18863756,61324.0,61319.0,0.163079]
[1727879123093,0.02556956,61324.0,61323.0,0.16307]
[1727879123533,0.02556956,61324.0,61323.0,0.23877]
[1727879123760,0.001644,61329.0,61328.0,0.195607]
[1727879124681,0.001644,61329.0,61325.0,0.03255]
[1727879124908,0.001644,61329.0,61323.0,0.163069]
[1727879125123,0.163064,61326.0,61323.0,0.24460842]
[1727879125368,0.163066,61325.0,61322.0,0.03255]
[1727879125587,0.001644,61329.0,61328.0,0.163057]
[1727879125807,0.001644,61329.0,61326.0,0.19561]
[1727879126025,0.001644,61329.0,61323.0,0.326138]
[1727879126251,0.001644,61329.0,61321.0,0.03255]
[1727879126252,0.001644,61329.0,61328.0,0.163057]
[1727879126917,0.001644,61329.0,61327.0,0.35867]
[1727879126918,0.001644,61329.0,61327.0,0.03255]
[1727879127192,0.001644,61329.0,61328.0,0.163057]
[1727879128079,0.001644,61329.0,61328.0,0.195607]
[1727879129185,0.001644,61329.0,61328.0,0.218607]
[1727879129415,0.001644,61329.0,61328.0,0.1948]
[1727879129638,0.001644,61329.0,61328.0,0.390407]
[1727879129852,0.001644,61329.0,61328.0,0.357857]
[1727879130506,0.163061,61327.0,61322.0,0.163072]
[1727879130738,0.163061,61327.0,61318.0,0.1867]
[1727879130739,0.163058,61328.0,61324.0,0.163068]
[1727879130960,0.164699,61329.0,61324.0,0.163066]
[1727879131174,0.163061,61327.0,61324.0,0.163066]
[1727879131385,0.001644,61329.0,61324.0,0.163066]
[1727879131598,0.163057,61328.0,61325.0,0.163065]
[1727879131851,0.001644,61329.0,61328.0,0.163057]
[1727879132075,0.001644,61329.0,61328.0,0.411307]
[1727879132300,0.001644,61338.0,61337.0,0.6547981]
[1727879133935,0.001644,61338.0,61337.0,0.6567981]
[1727879134167,0.02555948,61352.0,61351.0,0.195546]
[1727879134412,0.001642,61353.0,61352.0,0.218543]
[1727879134642,0.001642,61353.0,61352.0,0.21982758]
[1727879134876,0.001642,61353.0,61352.0,0.40501837]
[1727879135096,0.001642,61353.0,61352.0,0.403543]
[1727879136882,0.001642,61363.0,61362.0,0.6547321]
[1727879137339,0.001642,61363.0,61362.0,0.8393321]
[1727879138680,0.001642,61363.0,61362.0,0.403117]
[1727879138904,0.001642,61363.0,61362.0,0.8393321]
[1727879140090,0.24460842,61378.0,61377.0,0.185927]
[1727879140515,0.24460842,61378.0,61375.0,0.325864]
[1727879140516,0.325828,61382.0,61375.0,0.023]
[1727879140738,0.08,61401.0,61375.0,0.023]
[1727879140739,0.325801,61388.0,61375.0,0.023]
[1727879140968,0.164532,61391.0,61380.0,0.4362151]
[1727879141196,0.164532,61391.0,61377.0,0.184]
[1727879141197,0.24460842,61389.0,61377.0,0.184]
[1727879141412,0.162915,61382.0,61377.0,0.40753342]
[1727879141629,0.162915,61382.0,61368.0,0.023]
[1727879141630,0.001642,61391.0,61371.0,0.325885]
[1727879141852,0.001642,61391.0,61372.0,0.16294]
[1727879142072,0.02554611,61387.0,61377.0,0.24460842]
[1727879142281,0.162924,61378.0,61377.0,0.24460842]
[1727879142504,0.325847,61379.0,61370.0,0.40755342]
[1727879142713,0.02554611,61387.0,61377.0,0.24460842]
[1727879142938,0.162925,61378.0,61371.0,0.00325022]
[1727879143154,0.162933,61375.0,61371.0,0.00325022]
[1727879143393,0.68082352,61378.0,61358.0,0.325952]
[1727879143621,0.68082352,61378.0,61355.0,0.42600842]
[1727879143622,0.162956,61366.0,61365.0,0.24460842]
[1727879143847,0.1,61376.0,61365.0,0.00325896]
[1727879144073,0.325772,61393.0,61365.0,0.00325896]
[1727879144074,0.325842,61380.0,61365.0,0.00325896]
[1727879144293,0.24460842,61379.0,61363.0,0.24460842]
[1727879144515,0.24460842,61379.0,61366.0,0.162956]
[1727879144762,0.24460842,61379.0,61355.0,0.42600842]
[1727879144763,0.1,61373.0,61362.0,0.03255]
[1727879144979,0.5362151,61378.0,61365.0,0.24460842]
[1727879145230,0.325868,61375.0,61367.0,0.162951]
[1727879145453,0.4382151,61384.0,61370.0,0.162945]
[1727879145454,0.1,61374.0,61370.0,0.162945]
[1727879145681,0.1,61374.0,61365.0,0.03255]
[1727879145897,0.325885,61372.0,61366.0,0.24460842]
[1727879146108,0.162949,61369.0,61366.0,0.24460842]
[1727879146321,0.325891,61371.0,61366.0,0.24460842]
[1727879146587,0.325891,61371.0,61365.0,0.03255]
[1727879146588,0.162954,61367.0,61365.0,0.03255]
[1727879146803,0.162954,61367.0,61363.0,0.162964]
[1727879147023,0.325888,61371.0,61363.0,0.325927]
[1727879147249,0.162955,61367.0,61363.0,0.162964]
[1727879147456,0.45142194,61374.0,61362.0,0.27715842]
[1727879147457,0.02555094,61374.0,61362.0,0.03255]
[1727879147665,0.162958,61366.0,61362.0,0.03255]
[1727879147889,0.325886,61372.0,61363.0,0.24460842]
[1727879148112,0.325904,61368.0,61363.0,0.162963]
[1727879148339,0.162957,61366.0,61363.0,0.162963]
[1727879148569,0.325893,61370.0,61364.0,0.162961]
[1727879148788,0.325877,61373.0,61362.0,0.03255]
[1727879149003,0.34460842,61377.0,61360.0,0.03255]
[1727879149244,0.5362151,61377.0,61369.0,0.24460842]
[1727879149507,0.1,61383.0,61363.0,0.00325889]
[1727879149742,0.57041342,61387.0,61369.0,0.24460842]
[1727879149743,0.325856,61377.0,61369.0,0.24460842]
[1727879149973,0.425837,61381.0,61376.0,0.162928]
[1727879150192,0.425837,61381.0,61370.0,0.00325855]
[1727879150446,0.425837,61381.0,61368.0,0.03255]
[1727879150447,0.1,61378.0,61373.0,0.325873]
[1727879150661,0.1,61378.0,61373.0,0.162935]
[1727879150882,0.16293,61376.0,61371.0,0.162943]
[1727879151121,0.1,61378.0,61363.0,0.325926]
[1727879151343,0.12554879,61382.0,61370.0,0.24460842]
[1727879151557,0.162939,61373.0,61368.0,0.195498]
[1727879151773,0.162933,61375.0,61370.0,0.24460842]
[1727879151988,0.325855,61377.0,61369.0,0.325893]
[1727879152208,0.1,61382.0,61368.0,0.03255]
[1727879152441,0.02554895,61376.0,61370.0,0.325891]
[1727879152673,0.02554895,61376.0,61375.0,0.162932]
[1727879152932,0.02554895,61376.0,61370.0,0.023]
[1727879152933,0.02554895,61376.0,61372.0,0.162939]
[1727879153157,0.16293,61376.0,61372.0,0.162939]
[1727879153382,0.32584,61380.0,61374.0,0.162935]
[1727879153607,0.325845,61379.0,61370.0,0.185945]
[1727879153821,0.325845,61379.0,61369.0,0.162947]
[1727879153822,0.162936,61374.0,61369.0,0.162947]
[1727879154030,0.16293,61376.0,61371.0,0.24460842]
[1727879154283,0.325829,61382.0,61371.0,0.03255]
[1727879154509,0.001638,61385.0,61364.0,0.185959]
[1727879154510,0.24460842,61381.0,61364.0,0.185959]
[1727879154727,0.16294,61372.0,61371.0,0.24460842]
[1727879154977,0.101638,61385.0,61367.0,0.162952]
[1727879155217,0.162946,61370.0,61367.0,0.162952]
[1727879155509,0.24624642,61385.0,61362.0,0.03255]
[1727879155510,0.162954,61367.0,61362.0,0.03255]
[1727879155736,0.162954,61367.0,61352.0,0.0758]
[1727879155737,0.162961,61364.0,61363.0,0.03255]
[1727879155962,0.162963,61364.0,61358.0,0.325954]
[1727879156234,0.32589,61371.0,61359.0,0.03255]
[1727879156442,0.1,61377.0,61359.0,0.03255]
[1727879156443,0.325876,61373.0,61359.0,0.03255]
[1727879156652,0.325876,61373.0,61362.0,0.03255]
[1727879156862,0.162954,61367.0,61364.0,0.16296]
[1727879157074,0.325876,61373.0,61364.0,0.16296]
[1727879157289,0.325876,61373.0,61363.0,0.40838942]
[1727879157290,0.162957,61366.0,61363.0,0.40838942]
[1727879157516,0.325894,61370.0,61363.0,0.24542642]
[1727879157731,0.325876,61373.0,61364.0,0.162961]
[1727879157954,0.325876,61373.0,61363.0,0.40839042]
[1727879157955,0.16294,61373.0,61363.0,0.40839042]
[1727879158172,0.001636,61376.0,61365.0,0.162958]
[1727879158173,0.162952,61368.0,61365.0,0.162958]
[1727879158436,0.1,61374.0,61363.0,0.24542642]
[1727879158677,0.001636,61376.0,61373.0,0.28517551]
[1727879158913,0.001636,61376.0,61375.0,0.185932]
[1727879159134,0.001636,61376.0,61375.0,0.18918973]
[1727879159606,0.001636,61376.0,61375.0,0.38166871]
[1727879160085,0.001638,61385.0,61384.0,0.218458]
[1727879160324,0.001638,61385.0,61384.0,0.70073351]
[1727879160598,0.001642,61391.0,61390.0,0.50361751]
[1727879160836,0.001642,61391.0,61390.0,0.50561751]
[1727879161285,0.00164,61400.0,61399.0,0.195419]
[1727879161517,0.00164,61400.0,61399.0,0.74308122]
[1727879161746,0.001642,61411.0,61410.0,0.68556451]
[1727879161994,0.00164,61425.0,61416.0,0.185824]
[1727879161995,0.24243727,61417.0,61416.0,0.185824]
[1727879162232,0.27013793,61424.0,61423.0,0.185805]